Cogmind - Beta 12 @@@ ROGUE MODE // 2023.03.19 @ 22:06:44 Player: Mr. Q Result: Destroyed by G-34 Mercenary with Small Laser Performance ------------- Evolutions (1) 500 Regions Visited (2) 400 Robots Destroyed (19) 95 Value Destroyed (346) 346 Prototype IDs (3) 60 Alien Tech Used (0) 0 Bonus (0) 0 TOTAL SCORE: 1401 Bonus ------- None Cogmind --------- Core Integrity 0/400 Matter 187/300 Energy 100/100 System Corruption 1% Temperature Cool (6) Movement Core (350) Ox6 Location -9/Materials Parts ------- > --- POWER (1) -------- (None) > --- PROPULSION (2) --- (None) > --- UTILITY (4) ------ Large Storage Unit > --- WEAPON (2) ------- (None) > --- INVENTORY (15) --- Cooled Ion Engine Cooled Ion Engine Aluminum Leg Aluminum Leg Disposable Heat Sink Small Storage Unit Terrain Scan Processor Peak State ------------ > --- POWER ------------ Cooled Ion Engine > --- PROPULSION ------- Wheel Compact Wheel > --- UTILITY ---------- Disposable Heat Sink Small Storage Unit Medium Matter Pod Improved Terrain Scanner > --- WEAPON ----------- Grenade Launcher Mining Laser > --- INVENTORY -------- Cooled Ion Engine Cooled Ion Engine Aluminum Leg Aluminum Leg Wheel Small Laser [Rating: 15] Favorites ----------- Power Cooled Ion Engine Engine Cooled Ion Engine Propulsion Wheel Wheel Wheel Utility Small Storage Unit Device Improved Terrain Scanner Storage Small Storage Unit Weapon Small Laser Energy Gun Small Laser Launcher Grenade Launcher Special Weapon Mining Laser Build | -11 -10 -9 ------- Run | Jun Mat Mat Slots Evolved 2 | . . 2 Power . | . . . Propulsion . | . . . Utility 2 | . . 2 Weapon . | . . . Parts Attached 19 | 8 3 8 Power 3 | 1 1 1 Engine 3 | 1 1 1 Core . | . . . Reactor . | . . . Propulsion 4 | 3 . 1 Treads . | . . . Leg . | . . . Wheel 4 | 3 . 1 Hover . | . . . Flight . | . . . Utility 7 | 2 . 5 Device 3 | 1 . 2 Storage 4 | 1 . 3 Processor . | . . . Hackware . | . . . Protection . | . . . Artifact . | . . . Weapon 5 | 2 2 1 Energy Gun 3 | 2 . 1 Energy Cannon . | . . . Ballistic Gun . | . . . Ballistic Cannon . | . . . Launcher 1 | . 1 . Special Weapon 1 | . 1 . Impact Weapon . | . . . Slashing Weapon . | . . . Piercing Weapon . | . . . Special Melee Weapon . | . . . Unidentified Prototypes 1 | . 1 . Parts Lost 11 | . . 11 Power 2 | . . 2 Propulsion 3 | . . 3 Utility 3 | . . 3 Weapon 3 | . . 3 Highest Loss Streak 5 | . . 5 To Critical Strikes . | . . . Average Slot Usage (%) 87 | . 100 74 Engine 10 | . 14 7 Wheel 20 | . 28 13 Device 14 | . 14 14 Storage 19 | . 14 24 Energy Gun 11 | . 14 7 Launcher 7 | . 10 4 Special Weapon 3 | . 3 2 Naked Turns . | . . . Heaviest Build 109 | 13 18 109 Greatest Support 26 | 26 26 26 Greatest Overweight (x) 10 | 3 . 10 Average Overweight (x) . | . . 2 Largest Inventory Capacity 25 | 8 8 25 Average Capacity 10 | 7 8 14 Most Carried 8 | 5 8 7 Average Carried 6 | 2 7 6 Final Capacity 15 | 8 8 15 Final Carried 8 | 5 8 7 Class Distribution -------------------- 100% | Mutant Dominant Class ---------------- Mutant | -10/Materials Mutant | -9/Materials Resources | -11 -10 -9 ----------- Run | Jun Mat Mat Matter Collected 405 | 280 25 100 Remotely . | . . . Salvage Created 316 | 119 131 66 Parts 32 | 12 10 10 Haulers Intercepted . | . . . Recyclers Shooed . | . . . Parts Field Recycled . | . . . Retrieved Matter . | . . . Parts Self-Destructed . | . . . Prevented . | . . . Kills | -11 -10 -9 ------- Run | Jun Mat Mat Combat Hostiles Destroyed 11 | . 6 5 Guns 2 | . . 2 AOE 9 | . 6 3 Classes Destroyed 7 | 3 2 2 Worker 2 | 2 . . Builder 3 | . 2 1 Tunneler 2 | 2 . . Recycler 1 | 1 . . Swarmer 4 | . . 4 Grunt 6 | . 6 . Sentry 1 | . . 1 Best Kill Streak 5 | 5 4 5 Combat Bots Only 4 | . 4 4 Max Kills in Single Turn 3 | 1 2 3 Gunslinging . | . . . Exploded 2 | . 2 2 Melee . | . . . Uniques/NPCs Destroyed . | . . . Combat | -11 -10 -9 -------- Run | Jun Mat Mat Damage Taken 1209 | . 206 1003 Core 491 | . 83 408 Absorbed by Shields 130 | . . 130 Core Remaining (%) 83 | 100 66 . Volleys Fired 39 | 8 16 15 Largest 2 | 2 2 2 Hottest 130 | 80 130 130 Shots Fired 62 | 16 28 18 Gun 40 | 16 12 12 Cannon . | . . . Launcher 20 | . 14 6 Special 2 | . 2 . Kinetic . | . . . Thermal 42 | 16 14 12 Explosive 20 | . 14 6 Electromagnetic . | . . . Robot Hit Streak 9 | 6 8 9 Robot Miss Streak 3 | 1 1 3 Penetration Max . | . . . Secondary Targets . | . . . Shots Hit Robots 42 | 12 17 13 Core Hits 29 | 6 13 10 Critical Kills . | . . . Critical Parts Destroyed . | . . . Critical Strikes . | . . . Melee Attacks . | . . . Impact . | . . . Slashing . | . . . Piercing . | . . . Sneak Attacks . | . . . Combat Hostiles . | . . . Follow-up Attacks . | . . . Damage Inflicted 1342 | 143 767 432 Guns 323 | 143 74 106 Cannons . | . . . Explosions 1011 | . 693 318 Melee . | . . . Ramming 8 | . . 8 Kinetic . | . . . Thermal 323 | 143 74 106 Explosive 1011 | . 693 318 Electromagnetic . | . . . Impact . | . . . Slashing . | . . . Piercing . | . . . Highest Corruption 1 | . . 1 Average Corruption 1 | . . 1 Corruption Purged . | . . . Corruption Blocked . | . . . Overload Shots . | . . . Overflow Damage 25 | . 16 9 Projectiles . | . . . Explosions 25 | . 16 9 Melee . | . . . Knockbacks . | . . . Impact . | . . . Kinetic . | . . . Secondary . | . . . Self-Inflicted Damage 192 | . 100 92 Shots 9 | . 6 3 Rammed 3 | . . 3 Targets Rammed 3 | . . 3 Kicked . | . . . Crushed . | . . . Highest Temperature 36 | 36 33 7 Average Temperature 12 | 14 15 2 Received Heat Transfer 357 | . 60 297 Siege Activations . | . . . Robots Corrupted . | . . . Combat Hostiles . | . . . Parts Fried . | . . . Impact Corruptions . | . . . Robots Melted . | . . . Combat Hostiles . | . . . Parts Melted . | . . . Heat Transferred 750 | 325 175 250 Parts Sabotaged . | . . . Parts Stolen . | . . . Parts Stripped . | . . . Power Chain Reactions . | . . . Missiles Intercepted . | . . . Alert | -11 -10 -9 ------- Run | Jun Mat Mat Peak Influence 282 | 25 282 277 Initial 118 | . 16 118 Average 130 | 5 112 227 Maximum Alert Level 1 | . 1 1 Low Security (%) 60 | 100 69 25 Level 1 40 | . 30 75 Level 2 . | . . . Level 3 . | . . . Level 4 . | . . . Level 5 . | . . . High Security . | . . . Max Security . | . . . Squads Dispatched 3 | . 2 1 Investigation 1 | . 1 . Extermination . | . . . Reinforcement 2 | . 1 1 Assault . | . . . Garrison . | . . . Intercept . | . . . Searches Triggered . | . . . Construction Impeded . | . . . Haulers Reinforced . | . . . Active Scanning Responses . | . . . Cargo Convoy Interrupts . | . . . Stealth | -11 -10 -9 --------- Run | Jun Mat Mat Distress Signals 2 | . 1 1 Communications Jammed . | . . . Distress Signals . | . . . Times Spotted 21 | . 9 12 Peak Tracking Total 8 | . 3 8 Tactical Retreats . | . . . Traps | -11 -10 -9 ------- Run | Jun Mat Mat Traps Triggered . | . . . Indirectly . | . . . Trap Hack Attempts . | . . . Triggered . | . . . Disarmed . | . . . Reprogrammed . | . . . Reused . | . . . Traps Extracted . | . . . Installed . | . . . Triggered . | . . . Machines | -11 -10 -9 ---------- Run | Jun Mat Mat Machines Disabled 2 | . 1 1 Max in Single Turn 1 | . 1 1 Machines Repaired . | . . . Machines Sabotaged . | . . . Overloaded Fab Kills . | . . . Hacking | -11 -10 -9 --------- Run | Jun Mat Mat Machines Accessed 4 | . 2 2 Terminals 4 | . 2 2 Fabricators . | . . . Repair Stations . | . . . Recycling Units . | . . . Scanalyzers . | . . . Garrison Access . | . . . Total Hacks 8 | . 5 3 Successful 4 | . 2 2 Failed 4 | . 3 1 Catastrophic 1 | . 1 . Database Lockouts . | . . . Manual . | . . . Terminals 8 | . 5 3 Fabricators . | . . . Repair Stations . | . . . Recycling Units . | . . . Scanalyzers . | . . . Garrison Access . | . . . Terminal Hacks 4 | . 2 2 Prototype ID Bank 1 | . . 1 Emergency Access Points 1 | . . 1 Alert Level 1 | . 1 . Zone Layout 1 | . 1 . Fabricator Hacks . | . . . Repair Station Hacks . | . . . Recycling Unit Hacks . | . . . Scanalyzer . | . . . Garrison Access Hacks . | . . . Unauthorized Hacks . | . . . Terminals . | . . . Fabricators . | . . . Repair Stations . | . . . Recycling Units . | . . . Scanalyzers . | . . . Garrison Access . | . . . Data Cores Recovered . | . . . Used . | . . . Hacking Detections 2 | . 1 1 Full Trace Events 1 | . 1 . Feedback Events . | . . . Feedback Blocked . | . . . Robot Schematics Acquired . | . . . Robots Built . | . . . Authchips . | . . . Time . | . . . Total Robot Build Rating . | . . . Part Schematics Acquired . | . . . Parts Built . | . . . Authchips . | . . . Time . | . . . Total Part Build Rating . | . . . Parts Repaired . | . . . Time . | . . . Parts Recycled . | . . . Recycled Matter . | . . . Retrieved Matter . | . . . Retrieved Components . | . . . Parts Scanalyzed . | . . . Part Schematics Acquired . | . . . Parts Damaged . | . . . Bothacking | -11 -10 -9 ------------ Run | Jun Mat Mat Used RIF Installer . | . . . Robots Hacked . | . . . Non-combat . | . . . Combat . | . . . Robot Hacks Applied . | . . . Relay Couplers Released . | . . . Fabnet Peak Effective % . | . . . Robots Rewired . | . . . Allies Hacked . | . . . Hacks Repelled . | . . . Allies | -11 -10 -9 -------- Run | Jun Mat Mat Total Allies . | . . . Largest Group . | . . . Highest-Rated Group . | . . . Highest-Rated Ally . | . . . Total Orders . | . . . Ally Attacks . | . . . Total Damage . | . . . Kills . | . . . Allies Corrupted . | . . . Allies Melted . | . . . Intel | -11 -10 -9 ------- Run | Jun Mat Mat Robot Analysis Total . | . . . Derelict Logs Recovered . | . . . Drone Launches . | . . . Drone Recoveries . | . . . Exploration | -11 -10 -9 ------------- Run | Jun Mat Mat Turns Passed 520 | 118 210 192 Spaces Moved 331 | 78 164 89 Core 34 | 21 . 13 Treads . | . . . Legs . | . . . Wheels 297 | 57 164 76 Hover . | . . . Flight . | . . . Fastest Speed 50 | 50 90 90 Average Speed 104 | 99 90 136 Slowest Speed 350 | 200 90 350 Overloaded Moves . | . . . Propulsion Burnouts . | . . . Robots Hopped . | . . . Cave-ins Triggered . | . . . Exploration Rate (%) 18 | 5 34 16 Regions Visited 2 Branch Regions . Pre-discovered Areas . | . . . Known Exits Taken . | . . . Unknown Exits Taken 2 | 1 1 . Scrap Searched . | . . . Spaces Dug 27 | . 27 . Terrain Destroyed 121 | . 84 37 Melee . | . . . Projectile . | . . . AOE 121 | . 84 37 Terrain Rammed . | . . . Walls Destroyed . | . . . Machines Disabled . | . . . Actions | -11 -10 -9 --------- Run | Jun Mat Mat Total 412 | 98 195 119 Wait 3 | . 2 1 Move 329 | 77 163 89 Hop . | . . . Pick Up 11 | 5 5 1 Fast Attach 13 | 7 3 3 Attach 4 | . . 4 Detach 2 | . 1 1 Swap 2 | 1 . 1 Drop 6 | . 5 1 Fire 39 | 8 16 15 Melee . | . . . Ram 3 | . . 3 Kick . | . . . Crush . | . . . Escape Stasis . | . . . Rewire . | . . . Trap . | . . . Miscellaneous . | . . . Route ------- -11/Junkyard -10/Materials -9/Materials (discovered 1 exit: [*Min]) History --------- Turn | Location | Event 31 | -11/Junkyard | Discovered new exit (range 16) 119 | -11/Junkyard | Entered Materials 292 | -10/Materials | Discovered new exit (range 5) 315 | -10/Materials | Build established: Mutant 329 | -10/Materials | Entered another Materials area 329 | -9/Materials | Evolved 2 slots: Utility x2 457 | -9/Materials | Lost 5 parts (1p2n1u1w) 473 | -9/Materials | Discovered new exit (range 15) 494 | -9/Materials | Core integrity fell below 50% 512 | -9/Materials | Core integrity fell below 20% 521 | -9/Materials | Destroyed by G-34 Mercenary with Small Laser Last Messages --------------- (71,67) Map updated. 00441_ Acquired Huge Storage Unit. 00461_ Acquired Ion Engine. 00463_ O-16 Technician: "IFF HANDSHAKE FAILED. SECURING TERMINAL." 00467_ O-16 Technician uses terminal to summon reinforcements. 00467_ ALERT: Hostiles spotted, dispatching reinforcements to Terminal M002. 00467_ O-16 Technician locks terminal. 00473_ EXIT=FOUND 00487_ Imp. Terrain Scanner destroyed. 00496_ Slammed into G-34 Mercenary. 00498_ Destabilizing: Core damaged (-4). 00499_ Wheel destroyed. 00500_ Slammed into G-34 Mercenary. 00500_ Destabilizing: System corrupted (+1). 00502_ Sml. Laser destroyed. 00507_ Ion Engine destroyed. 00515_ Med. Matter Pod destroyed. 00518_ Dropped Huge Storage Unit. Map ----- +----------------------------------------------------+ | ?????????????????????????????????????????????????? | | ?????????????????????????????????????????????????? | | ?????????????????????????????????????????????????? | | ?????????????????????????????????????????????????? | | ?????????????????????????????????????????????????? | | ?????????????????????????????????????????????????? | | ?????????????????????????????????????????????????? | | ?????????????????????????????????????????????????? | | ?????????????????????????????????????????????????? | | ?????????????????????????????????????????????????? | | ?????????????????????????????????????????????????? | | ?????????????????????????????????????????????????? | | ?????????????????????????????????????????????????? | | ?????????????????????????????????????????????????? | | ?????????????????????????????????????????????????? | | ?????????????????????????????????????????????????? | | ?????????????????????????????????????????????????? | | ?????????????????????????????????????????????????? | | ?????????????????????????????????????????????????? | | ?????????????#???????????????????????????????????? | | ?????????????# ?????#######?????????????????????? | | ?????????????# ##### #?????????????????????? | | ?????????????#a #?????????????????????? | | ?????????????# r < #?????????????????????? | | ?????????????? g #???? ????????????????? | | ?????????????????????# g@ #?????????????????????? | | ?????????????????????###!###?????????????????????? | | ????????????? ?????????# #???????????????????????? | | ???????????????????????# #???????????????????????? | | ???????????????????????# #???????????????????????? | | ???????????????????????# #????#??????????????????? | | ???????????????????????# #???????????????????????? | | ????????????????? ?????# #????????? ?????????????? | | ???????????????????????# #????????????"??????????? | | ????????????????????#?## ###+###??????"??????????? | | ????????????????????### #?????????????????? | | ?????????"??????????+ ! +????? ???????????? | | ????????????????????## "" / #?????????????????? | | ?????????????????????# "" ##?????????????????? | | ????????????#????????# T" #??????? ??????????? | | ???????????# ##### "" #????+#+#??????????? | | ????????? "" ##### #??????????? | | ????????? #??????????? | | ????????? #??????????? | | ??????????## ##### #####??????? | | ???????????## ?????######## ????? | | ????????????# ?????????????## #### ????? | | ???????????##???????????????#+#### ??? ??? | | ???????????/????#???????????# # #####??????? | | ????????????#????????????? ?# # #??????????? | +----------------------------------------------------+ Best States ------------- Heat Dissipation 28 Coolant Potential 50 Energy Generation 14 Energy Capacity 280 Matter Stores 300 Matter Capacity 400 Sight Range 16 Terrain Scan Range 16 Terrain Scan Density 10 Evasion (%) 44 Item Schematics ----------------- None Robot Schematics ------------------ None Fabricated ------------ Nothing Alien Tech Used ----------------- None Achievements -------------- None Challenges ------------ None Game ------ Seed AssaultThunderRail Manual? 0 Play Time 00:09:31 Cumulative 35.2 hours Start 2023.03.19 @ 21:59:43 End 2023.03.19 @ 22:06:44 Sessions 1 Manual Loads 0 Difficulty Rogue Special Mode None Game No. 36 Rogue 16 Adventurer 2 Explorer 18 Win Type - Total 2 Types 2/0/0/0/0/0/0/0/0 Lore% 29 Gallery% 43 Achievement% 32 Wizard Run 0 Options --------- ASCII 0 Keyboard 0 Movement Numpad Keybinds 0 Fullscreen 1 Font 24/Smallcaps Map View 76x50 Tactical HUD 1 Map Filters NONE Filters NONE Steam 1 RUN: 4611edaa-8386-461c-b75c-e54604940db3